bitfinex-derivatives/quotes_SOLF0:USTF0_20250424
["timestamp","ask_amount","ask_price","bid_price","bid_amount"]
[1745498771467,6.61949143,147.97,147.92,5.0]
[1745498771669,6.61949143,147.98,147.93,6.61949143]
[1745498772373,6.61949143,147.98,147.95,6.7579]
[1745498773171,6.61949143,147.98,147.96,6.7576]
[1745498775071,6.61949143,147.98,147.95,6.7581]
[1745498775267,6.61949143,147.96,147.95,6.7581]
[1745498776274,6.61949143,147.96,147.94,6.7585]
[1745498776569,6.61949143,147.98,147.93,6.61949143]
[1745498776773,6.61949143,147.99,147.93,6.61949143]
[1745498776973,6.61949143,147.99,147.96,6.7574]
[1745498778876,6.61949143,147.97,147.96,6.7574]
[1745498782081,6.61949143,147.98,147.96,6.7574]
[1745498782274,6.61949143,147.98,147.97,6.7573]
[1745498782579,6.61949143,147.99,147.95,11.61949143]
[1745498782778,31.39949143,148.0,147.99,6.7564]
[1745498784377,24.78,148.0,147.99,6.7564]
[1745498785778,6.61949143,148.02,147.98,5.0]
[1745498785981,31.39949143,148.03,148.01,6.7554]
[1745498786378,6.61949143,148.02,148.01,6.7554]
[1745498789889,24.78,148.03,148.02,6.755]
[1745498790078,31.39949143,148.06,148.01,5.0]
[1745498790782,31.39949143,148.06,148.04,6.7541]
[1745498792688,31.39949143,148.06,148.05,6.7536]
[1745498795688,24.78,148.06,148.05,6.7536]
[1745498797192,31.37949143,148.09,148.08,6.7522]
[1745498797488,24.76,148.09,148.08,6.7522]
[1745498799787,24.76,148.09,148.06,6.61949143]
[1745498799984,31.37949143,148.09,148.04,11.61949143]
[1745498800891,31.37949143,148.09,148.04,5.0]
[1745498801189,31.37949143,148.09,148.07,6.7524]
[1745498802490,31.37949143,148.09,148.08,6.7522]
[1745498802693,24.76,148.09,148.08,6.7522]
[1745498803690,24.76,148.09,148.04,5.0]
[1745498803892,6.61949143,148.06,148.04,5.0]
[1745498804096,6.61949143,148.06,148.0,11.61949143]
[1745498805491,6.61949143,148.06,148.03,6.7543]
[1745498805694,13.37279143,148.06,148.03,6.7543]
[1745498806492,24.76,148.05,148.03,6.7543]
[1745498810496,6.61949143,148.04,148.02,6.7548]
[1745498810892,6.61949143,148.04,148.0,5.0]
[1745498811102,6.61949143,148.01,148.0,5.0]
[1745498812897,31.37949143,148.01,148.0,5.0]
[1745498813599,31.37949143,148.01,147.99,6.7561]
[1745498813897,6.61949143,148.0,147.98,6.7567]
[1745498814094,6.61949143,147.99,147.98,6.7567]
[1745498814802,24.76,148.01,147.98,6.7567]
[1745498814999,6.61949143,148.0,147.99,6.7561]
[1745498816899,6.61949143,148.0,147.98,6.7566]
[1745498817092,6.61949143,147.99,147.98,6.7566]
[1745498817895,6.61949143,147.99,147.97,11.7571]
[1745498818198,6.61949143,147.99,147.97,6.7571]
[1745498819402,6.61949143,147.98,147.97,6.7571]
[1745498820402,6.61949143,147.99,147.94,11.61949143]
[1745498820904,6.61949143,148.0,147.95,6.61949143]
[1745498821102,24.76,148.01,147.97,11.61949143]
[1745498821302,24.76,148.04,148.0,5.0]
[1745498821504,31.37949143,148.04,148.02,6.7547]
[1745498823608,31.37949143,148.04,148.03,6.7545]
[1745498824206,31.37949143,148.04,148.0,5.0]
[1745498824912,31.37949143,148.04,148.03,6.7545]
[1745498830611,24.76,148.04,148.03,6.7545]
[1745498831207,31.37949143,148.04,148.03,6.7545]
[1745498831408,31.37949143,148.04,148.02,6.7548]
[1745498832419,31.37949143,148.04,148.03,6.7545]
[1745498832711,31.37949143,148.07,148.01,6.61949143]
[1745498832917,24.76,148.07,148.03,11.61949143]
[1745498834217,24.76,148.07,148.06,6.7532]
[1745498834519,31.37949143,148.1,148.06,5.0]
[1745498835416,38.13119143,148.1,148.07,6.7525]
[1745498835621,6.61949143,148.08,148.06,5.0]
[1745498835816,6.61949143,148.08,148.01,6.61949143]
[1745498835817,6.61949143,148.08,148.02,5.0]
[1745498836028,6.61949143,148.04,148.02,5.0]
[1745498836318,6.61949143,148.04,147.98,11.8784]
[1745498836521,6.61949143,148.04,147.98,18.49789143]
[1745498836722,6.61949143,148.04,148.01,6.7552]
[1745498837222,13.37369143,148.04,148.01,6.7552]
[1745498838025,6.7545,148.03,148.0,6.7558]
[1745498838526,6.61949143,148.02,148.0,6.7558]
[1745498839224,13.37459143,148.02,147.99,6.7562]
[1745498839720,6.61949143,148.0,147.97,6.7571]
[1745498840023,6.61949143,147.98,147.97,6.7571]
[1745498840324,6.61949143,147.98,147.96,6.7575]
[1745498840526,6.61949143,147.98,147.93,11.8231]
[1745498841025,6.61949143,147.98,147.95,6.7579]
[1745498841323,10.39128517,147.99,147.95,6.7579]
[1745498841625,17.14798517,147.99,147.95,6.7579]
[1745498842726,6.7569,147.98,147.95,6.7579]
[1745498843026,10.39128517,147.99,147.95,6.7579]
[1745498843729,6.7568,147.98,147.95,6.7579]
[1745498847527,17.14788517,147.99,147.96,6.7577]
[1745498848327,6.7568,147.98,147.96,6.7577]
[1745498848629,6.7568,147.98,147.95,6.7579]
[1745498849726,17.14788517,147.99,147.96,6.7577]
[1745498850028,10.39128517,147.99,147.96,6.7577]
[1745498850230,10.39128517,147.97,147.94,5.0]
[1745498850526,24.76,147.96,147.9,5.0]
[1745498851231,24.76,147.96,147.93,5.0]
[1745498852132,24.76,147.96,147.94,6.7586]
[1745498852325,24.76,147.96,147.93,5.0]
[1745498852632,24.76,147.96,147.94,6.7582]
[1745498853230,24.76,147.96,147.93,11.759]
[1745498853429,24.76,147.96,147.93,5.0]
[1745498853630,24.76,147.96,147.91,2.5094]
[1745498854231,6.7583,147.95,147.92,6.7593]
[1745498855836,6.7587,147.94,147.91,6.7597]
[1745498856230,24.76,147.96,147.9,5.0]
[1745498856426,6.7585,147.95,147.91,6.7597]
[1745498857131,6.7586,147.95,147.91,6.7597]
[1745498857338,24.76,147.96,147.91,6.7597]
[1745498857532,10.39128517,147.95,147.91,6.7597]
[1745498858036,6.7588,147.94,147.91,6.7597]
[1745498858336,6.7588,147.94,147.9,11.7602]
[1745498858532,10.39128517,147.93,147.87,7.7433]
[1745498858739,6.76,147.91,147.87,7.7433]
[1745498859132,6.76,147.91,147.88,6.7612]
[1745498859739,31.5198,147.92,147.87,5.0]
[1745498859936,24.76,147.92,147.87,5.0]
[1745498860334,24.76,147.92,147.91,6.76]
[1745498863542,6.65340428,147.94,147.91,6.76]
[1745498863543,24.76,147.96,147.95,6.758]
[1745498863738,24.76,147.96,147.93,5.0]
[1745498864137,24.76,147.96,147.95,6.7582]
[1745498883055,24.76,147.96,147.94,6.7584]
[1745498885154,24.76,147.96,147.95,6.7582]
[1745498887655,31.40916402,147.99,147.97,6.7568]
[1745498887856,31.40916402,147.99,147.94,6.64916402]
[1745498888955,31.40916402,147.99,147.93,5.0]
[1745498888956,24.76,147.99,147.96,11.64916402]
[1745498889256,24.76,147.99,147.98,6.7568]
[1745498889953,31.40916402,148.02,147.96,11.64916402]
[1745498890157,24.76,148.03,148.0,11.64916402]
[1745498890559,31.40916402,148.06,148.02,6.64916402]
[1745498890758,24.76,148.06,148.03,5.0]
[1745498891254,24.76,148.06,148.05,6.7536]
[1745498891857,24.76,148.06,148.04,6.7538]
[1745498892155,24.76,148.06,148.03,5.0]
[1745498892356,6.64916402,148.05,148.03,5.0]
[1745498892555,6.64916402,148.05,148.0,13.52676402]
[1745498893660,6.64916402,148.05,148.02,6.7547]
[1745498894463,24.76,148.06,148.02,6.64916402]
[1745498894661,24.76,148.06,148.03,5.0]
[1745498895261,24.76,148.06,148.04,6.7541]
[1745498895561,24.76,148.06,148.03,5.0]
[1745498896459,24.76,148.06,148.05,6.7536]
[1745498899562,24.76,148.06,148.04,6.7538]
[1745498900562,24.76,148.06,148.05,6.7536]
[1745498902063,31.38916402,148.09,148.07,6.7524]
[1745498905965,6.64916402,148.08,148.03,11.64916402]
[1745498906168,6.64916402,148.08,148.04,6.64916402]
[1745498906368,6.64916402,148.08,148.06,6.7532]
[1745498906769,31.38916402,148.09,148.05,6.64916402]
[1745498906960,31.38916402,148.09,148.03,5.0]
[1745498907165,6.64916402,148.08,148.04,6.64916402]
[1745498907462,31.38916402,148.09,148.05,6.64916402]
[1745498907664,31.38916402,148.09,148.07,6.7526]
[1745498907963,24.74,148.09,148.07,6.64916402]
[1745498908296,24.74,148.09,148.08,6.7522]
[1745498908667,24.72,148.12,148.07,6.64916402]
[1745498911570,24.72,148.12,148.09,6.7516]
[1745498911771,31.4705,148.12,148.09,6.7516]
[1745498912571,6.64916402,148.1,148.06,5.0]
[1745498913068,6.64916402,148.1,148.07,6.7525]
[1745498913272,6.64916402,148.09,148.06,5.0]
[1745498914270,24.72,148.08,148.04,6.64916402]
[1745498914571,24.72,148.08,148.05,6.7532]
[1745498914871,24.72,148.08,148.04,6.64916402]
[1745498915066,24.72,148.08,148.06,6.7529]
[1745498915266,24.72,148.08,148.04,6.64916402]
[1745498915463,24.72,148.08,148.06,6.64916402]
[1745498915663,24.72,148.08,148.06,11.64916402]
[1745498916171,24.72,148.08,148.07,6.7527]
[1745498919778,24.72,148.08,148.06,11.7529]
[1745498921774,24.72,148.08,148.07,6.7527]
[1745498922473,24.72,148.08,148.06,11.7529]
[1745498923875,24.72,148.08,148.07,6.7527]
[1745498929580,31.36916402,148.11,148.08,6.7519]
[1745498929977,31.36916402,148.11,148.06,11.64916402]
[1745498931173,24.72,148.14,148.1,6.64916402]
[1745498931480,24.72,148.17,148.15,6.7486]
[1745498931779,24.72,148.17,148.12,11.64916402]
[1745498931977,24.72,148.17,148.14,6.64916402]
[1745498932278,31.36916402,148.2,148.15,5.0]
[1745498932476,31.36916402,148.2,148.16,6.64916402]
[1745498932675,31.36916402,148.2,148.18,6.7475]
[1745498933782,31.36916402,148.2,148.15,11.64916402]
[1745498934081,24.72,148.2,148.15,11.64916402]
[1745498934283,24.72,148.2,148.18,11.7473]
[1745498934883,24.72,148.2,148.18,5.0]
[1745498935384,24.72,148.2,148.18,11.7476]
[1745498935575,24.72,148.2,148.18,5.0]
[1745498935984,6.64916402,148.19,148.15,5.0]
[1745498936384,6.64916402,148.17,148.15,5.0]
[1745498936876,24.7,148.16,148.09,6.64916402]
[1745498937077,6.64916402,148.12,148.08,6.64916402]
[1745498937479,31.34916402,148.12,148.06,31.34916402]
[1745498937686,6.64916402,148.1,148.08,6.752]
[1745498937887,6.64916402,148.1,148.06,6.64916402]
[1745498938290,6.64916402,148.1,148.08,6.7519]
[1745498938787,6.64916402,148.1,148.09,6.7518]
[1745498939385,31.34916402,148.12,148.06,6.64916402]
[1745498940191,31.34916402,148.12,148.09,6.7516]
[1745498940691,31.34916402,148.12,148.06,6.64916402]
[1745498940888,31.34916402,148.12,148.11,6.7509]
[1745498941093,31.34916402,148.12,148.06,6.64916402]
[1745498941592,31.34916402,148.12,148.1,6.7511]
[1745498941893,31.34916402,148.12,148.06,6.64916402]
[1745498942192,31.34916402,148.12,148.1,6.7511]
[1745498943891,24.7,148.12,148.11,6.7509]
[1745498944294,6.7492,148.15,148.13,6.7499]
[1745498944295,24.7,148.15,148.13,6.7499]
[1745498944494,6.64916402,148.14,148.11,5.0]
[1745498944997,6.64916402,148.14,148.11,11.7506]
[1745498945496,6.64916402,148.14,148.12,6.7504]
[1745498946699,6.64916402,148.14,148.11,6.7509]
[1745498946898,6.64916402,148.12,148.08,11.64916402]
[1745498947901,31.4493,148.15,148.11,6.7506]
[1745498948094,6.64916402,148.13,148.11,6.7506]
[1745498948594,6.64916402,148.13,148.08,5.0]
[1745498948792,6.64916402,148.1,148.05,11.64916402]
[1745498949293,24.7,148.11,148.06,6.64916402]
[1745498949490,24.7,148.11,148.07,6.64916402]
[1745498949901,24.7,148.11,148.1,6.7513]
[1745498952100,24.7,148.11,148.09,6.7516]
[1745498952401,24.7,148.11,148.08,5.0]
[1745498952801,24.7,148.11,148.1,6.7513]
[1745498954702,6.64916402,148.12,148.11,6.7509]
[1745498958205,31.4495,148.14,148.11,6.7509]
[1745498958400,6.64916402,148.13,148.11,6.7509]
[1745498960107,6.64916402,148.13,148.12,6.7504]
[1745498960806,24.7,148.14,148.13,6.75]
[1745498965208,24.7,148.17,148.16,6.7486]
[1745498965409,24.7,148.17,148.13,6.64916402]
[1745498966009,24.7,148.17,148.14,6.7494]
[1745498966799,31.4482,148.17,148.14,6.7494]
[1745498967004,6.64916402,148.16,148.14,6.7494]
[1745498967910,6.64916402,148.16,148.13,6.7497]
[1745498968108,6.64916402,148.16,148.12,11.64916402]
[1745498968309,31.34916402,148.17,148.14,6.7492]
[1745498968910,38.09736402,148.17,148.14,6.7492]
[1745498969111,31.34916402,148.17,148.14,6.7492]
[1745498969808,31.34916402,148.17,148.15,6.749]
[1745498970008,24.7,148.17,148.15,6.749]
[1745498970513,31.4482,148.17,148.14,6.7494]
[1745498971011,38.09736402,148.17,148.14,6.7494]
[1745498971711,31.34916402,148.17,148.14,6.7494]
[1745498971914,31.34916402,148.17,148.15,6.7489]
[1745498974416,24.7,148.17,148.16,6.7486]
[1745498976805,31.34916402,148.2,148.15,6.64916402]
[1745498977010,31.34916402,148.2,148.15,11.64916402]
[1745498977811,38.09596402,148.2,148.17,6.7479]
[1745498978409,31.4468,148.2,148.17,6.7479]
[1745498978713,31.4468,148.2,148.18,6.7477]
[1745498978714,24.7,148.2,148.18,6.7477]
[1745498981915,24.7,148.2,148.15,11.64916402]
[1745498982215,24.7,148.2,148.18,6.7474]
[1745498983518,31.4469,148.2,148.17,6.7479]
[1745498983915,31.4469,148.2,148.15,11.64916402]
[1745498984120,24.7,148.2,148.18,6.7475]
[1745498990014,31.4469,148.2,148.18,6.7475]
[1745498992023,6.64916402,148.19,148.13,6.64916402]
[1745498992317,6.64916402,148.17,148.13,6.64916402]
[1745498992525,6.64916402,148.17,148.15,6.7488]
[1745498994123,6.7479,148.18,148.15,6.7488]
[1745498994422,13.39706402,148.18,148.15,6.7488]
[1745498994622,24.7,148.2,148.16,6.7484]
[1745498994623,31.34916402,148.2,148.16,6.7484]
[1745498994824,24.7,148.2,148.16,6.64916402]
[1745498995216,24.7,148.2,148.18,6.7475]
[1745498996728,31.447,148.2,148.17,6.7479]
[1745498997122,6.64916402,148.19,148.17,6.7479]
[1745498998025,6.64916402,148.19,148.18,6.7477]
[1745498998526,6.64916402,148.19,148.17,6.7479]
[1745498998821,6.64916402,148.19,148.15,5.0]
[1745498999224,6.64916402,148.19,148.17,6.7478]
[1745498999425,6.64916402,148.19,148.15,5.0]
[1745498999730,6.64916402,148.19,148.15,11.7487]
[1745498999928,6.64916402,148.17,148.15,11.7487]
[1745499000228,6.64916402,148.18,148.12,11.64916402]
[1745499001131,6.64916402,148.18,148.15,6.7488]
[1745499003826,6.7475,148.19,148.15,6.7488]
[1745499004030,13.39686402,148.18,148.15,6.7488]
[1745499004230,6.64916402,148.18,148.14,6.7494]
[1745499005126,13.39706402,148.18,148.15,6.7491]
[1745499005731,6.64916402,148.18,148.15,6.7491]
[1745499005926,31.34916402,148.2,148.14,6.64916402]
[1745499006530,31.34916402,148.2,148.17,6.7478]
[1745499007031,31.34916402,148.2,148.18,6.7476]
[1745499008532,31.34916402,148.2,148.19,6.7472]
[1745499012633,31.34916402,148.2,148.15,5.0]
[1745499012826,6.64916402,148.18,148.15,5.0]
[1745499013128,6.64916402,148.18,148.17,6.7481]
[1745499013533,6.64916402,148.18,148.15,5.0]
[1745499013733,6.64916402,148.18,148.16,6.7484]
[1745499018136,38.09616402,148.2,148.17,6.7481]
[1745499018841,6.7474,148.19,148.16,6.7484]
[1745499019035,31.34916402,148.2,148.16,6.7484]
[1745499019238,13.39716402,148.18,148.15,11.7488]
[1745499019436,6.64916402,148.18,148.15,11.7488]
[1745499019638,6.64916402,148.18,148.15,6.7488]
[1745499020141,6.64916402,148.18,148.12,11.64916402]
[1745499020944,6.7484,148.17,148.14,6.7492]
[1745499022042,13.39706402,148.18,148.14,6.7492]
[1745499023342,6.64916402,148.17,148.14,6.7492]
[1745499024848,6.64916402,148.17,148.15,6.749]
[1745499027152,6.64916402,148.17,148.14,6.7493]
[1745499027354,31.30916402,148.17,148.14,6.7493]
[1745499027855,31.30916402,148.17,148.15,6.7489]
[1745499030956,38.05736402,148.17,148.14,6.7494]
[1745499031255,6.64916402,148.16,148.14,6.7494]
[1745499031854,31.30916402,148.17,148.15,6.749]
[1745499034054,24.66,148.17,148.14,6.64916402]
[1745499035258,24.66,148.17,148.16,6.7486]
[1745499042265,6.7465,148.21,148.16,6.7486]
[1745499042266,31.32916402,148.2,148.18,6.7476]
[1745499042564,31.32916402,148.2,148.16,6.64916402]
[1745499043667,38.07616402,148.2,148.17,6.7479]
[1745499044965,38.07616402,148.2,148.18,6.7476]
[1745499045167,6.64916402,148.19,148.18,6.7476]
[1745499048569,38.07596402,148.2,148.18,6.7476]
[1745499048870,31.32916402,148.2,148.18,6.7476]
[1745499050870,38.07606402,148.2,148.18,6.7476]
[1745499052673,31.32916402,148.2,148.15,11.64916402]
[1745499054173,31.32916402,148.2,148.18,6.7474]
[1745499054875,38.07596402,148.2,148.18,6.7474]
[1745499056477,6.7475,148.19,148.16,6.7484]
[1745499056677,6.64916402,148.18,148.15,5.0]
[1745499056975,6.64916402,148.18,148.16,6.7486]
[1745499058375,6.64916402,148.18,148.17,6.7481]
[1745499059277,6.64916402,148.18,148.16,6.7484]
[1745499059470,6.64916402,148.18,148.15,5.0]
[1745499059874,6.64916402,148.18,148.16,6.7483]
[1745499060479,13.39696402,148.18,148.15,11.7489]
[1745499061476,6.64916402,148.18,148.16,6.7486]
[1745499061778,24.66,148.17,148.16,6.7486]
[1745499062278,31.30916402,148.2,148.17,6.7478]
[1745499062477,24.66,148.2,148.15,11.64916402]
[1745499062777,24.66,148.2,148.19,6.7472]
[1745499067980,24.66,148.23,148.22,6.7455]
[1745499070975,31.4042,148.26,148.23,6.7451]
[1745499071277,6.64916402,148.25,148.23,6.7451]
[1745499071477,6.64916402,148.25,148.21,6.64916402]
[1745499071778,6.64916402,148.25,148.22,5.0]
[1745499072480,6.64916402,148.25,148.23,6.745]
[1745499072880,6.64916402,148.25,148.22,5.0]
[1745499073077,6.64916402,148.25,148.24,6.745]
[1745499073578,31.30916402,148.26,148.24,6.745]
[1745499075381,31.30916402,148.26,148.25,6.7445]
[1745499075982,24.66,148.26,148.25,6.7445]
[1745499076282,24.66,148.26,148.24,6.7447]
[1745499076581,6.64916402,148.25,148.24,6.7447]
[1745499077276,24.66,148.26,148.25,6.7445]
[1745499088291,31.30916402,148.26,148.22,5.0]
[1745499088490,6.64916402,148.25,148.22,5.0]
[1745499088686,13.39366402,148.25,148.22,11.7456]
[1745499088887,6.64916402,148.25,148.22,11.7456]
[1745499089083,6.64916402,148.25,148.22,5.0]
[1745499089588,13.39376402,148.25,148.22,11.7456]
[1745499090290,6.64916402,148.25,148.23,6.7453]
[1745499091192,13.39366402,148.25,148.22,11.7457]
[1745499091381,13.39366402,148.25,148.2,6.64916402]
[1745499091584,6.64916402,148.24,148.19,13.69546402]
[1745499091989,6.64916402,148.24,148.22,6.7457]
[1745499092692,6.64916402,148.24,148.21,6.7462]
[1745499093096,13.39416402,148.24,148.21,6.7462]
[1745499093794,13.39416402,148.24,148.19,13.69546402]
[1745499094594,13.39416402,148.24,148.21,6.7462]
[1745499095294,6.64916402,148.22,148.2,6.7467]
[1745499095496,6.64916402,148.21,148.19,5.0]
[1745499095990,6.64916402,148.2,148.15,5.0]
[1745499096195,6.64916402,148.18,148.15,5.0]
[1745499096395,31.28916402,148.18,148.15,5.0]
[1745499096593,31.28916402,148.18,148.15,11.7489]
[1745499098395,31.28916402,148.18,148.16,6.7485]
[1745499098697,31.28916402,148.18,148.15,5.0]
[1745499098997,31.28916402,148.18,148.15,11.7488]
[1745499099898,38.03696402,148.18,148.15,11.7488]
[1745499100094,38.03696402,148.18,148.16,6.7486]
[1745499100095,31.28916402,148.18,148.16,6.7486]
[1745499100597,31.28916402,148.18,148.15,5.0]
[1745499101100,6.64916402,148.16,148.12,13.64946402]
[1745499101499,6.64916402,148.16,148.14,6.7493]
[1745499103598,13.39736402,148.17,148.14,6.7493]
[1745499103799,6.64916402,148.16,148.14,6.7493]
[1745499103999,13.39776402,148.16,148.13,6.7498]
[1745499105500,6.64916402,148.16,148.13,6.7498]
[1745499106001,13.39776402,148.16,148.13,6.7498]
[1745499106198,6.64916402,148.16,148.13,6.7498]
[1745499106800,6.64916402,148.16,148.14,6.7494]
[1745499111207,6.7496,148.14,148.12,5.0]
[1745499111505,31.3896,148.14,148.11,6.7507]
[1745499111703,24.64,148.14,148.12,6.7504]
[1745499112309,24.64,148.14,148.13,6.75]
[1745499118816,31.28916402,148.14,148.13,6.75]
[1745499119216,31.28916402,148.14,148.12,11.7502]
[1745499119414,31.28916402,148.14,148.12,5.0]
[1745499119914,31.28916402,148.14,148.13,6.75]
[1745499121719,24.64,148.14,148.13,6.75]
[1745499127911,24.64,148.14,148.12,5.0]
[1745499128117,6.64916402,148.13,148.12,6.7503]
[1745499128515,13.39916402,148.13,148.1,6.7511]
[1745499128717,6.64916402,148.12,148.1,6.7511]
[1745499130620,6.64916402,148.12,148.11,6.7509]
[1745499130820,6.64916402,148.13,148.09,6.64916402]
[1745499131022,6.64916402,148.13,148.09,11.64916402]
[1745499131227,6.64916402,148.13,148.11,6.7507]
[1745499135327,6.64916402,148.13,148.12,6.7504]
[1745499139925,24.64,148.14,148.13,6.75]
[1745499145136,6.7483,148.17,148.13,6.75]
[1745499145137,24.64,148.17,148.16,6.7486]
[1745499145337,24.64,148.2,148.16,6.64916402]
[1745499145538,31.28916402,148.21,148.17,6.64916402]
[1745499145737,31.28916402,148.21,148.19,6.747]
[1745499146435,31.28916402,148.21,148.17,6.64916402]
[1745499146943,31.28916402,148.21,148.19,6.7472]
[1745499147337,31.28916402,148.21,148.17,6.64916402]
[1745499147539,31.28916402,148.21,148.18,6.7475]
[1745499148037,31.28916402,148.21,148.17,6.64916402]
[1745499148234,31.28916402,148.21,148.19,6.747]
[1745499148738,24.64,148.21,148.19,6.747]
[1745499150040,31.3864,148.21,148.19,6.747]
[1745499150540,24.64,148.21,148.2,6.7468]
[1745499154037,24.64,148.21,148.19,13.39616402]
[1745499155243,24.64,148.21,148.2,6.7468]
[1745499156245,24.62,148.24,148.23,6.7454]
[1745499157544,24.62,148.24,148.22,6.7457]
[1745499157747,24.62,148.24,148.21,5.0]
[1745499159046,24.62,148.24,148.22,6.7456]
[1745499159749,24.62,148.24,148.23,6.7454]
[1745499161048,24.62,148.24,148.21,11.64916402]
[1745499161748,24.62,148.24,148.23,6.7447]
[1745499162347,6.64916402,148.26,148.23,6.7447]
[1745499162546,13.39276402,148.26,148.23,6.7447]
[1745499164248,13.39276402,148.26,148.24,6.7443]
[1745499164447,6.64916402,148.26,148.24,6.7443]
[1745499165247,13.39256402,148.26,148.24,6.7443]
[1745499165549,24.62,148.27,148.23,6.64916402]
[1745499165744,24.62,148.27,148.24,5.0]
[1745499165942,24.62,148.27,148.26,6.7434]
[1745499166448,31.26916402,148.3,148.28,6.7422]
[1745499166644,31.26916402,148.3,148.25,6.64916402]
[1745499168253,31.26916402,148.3,148.28,6.7425]
[1745499170548,38.01076402,148.3,148.28,6.7425]
[1745499170947,38.01076402,148.3,148.27,6.7427]
[1745499171351,38.01076402,148.3,148.25,6.64916402]
[1745499172650,38.01076402,148.3,148.27,6.7427]
[1745499173449,13.39126402,148.29,148.27,6.7427]
[1745499175454,6.64916402,148.29,148.24,5.0]
[1745499175748,6.64916402,148.27,148.24,5.0]
[1745499176248,13.39216402,148.27,148.24,11.7439]
[1745499176556,13.39216402,148.27,148.24,5.0]
[1745499176860,6.64916402,148.27,148.25,6.7438]
[1745499177054,6.64916402,148.26,148.25,6.7438]
[1745499182758,6.64916402,148.28,148.26,6.7433]
[1745499183355,13.39166402,148.28,148.26,6.7433]
[1745499183555,6.64916402,148.28,148.27,6.7429]
[1745499183756,6.64916402,148.29,148.27,6.7429]
[1745499183959,6.64916402,148.29,148.24,11.64916402]
[1745499184258,24.62,148.3,148.28,6.7425]
[1745499184461,24.62,148.3,148.26,6.64916402]
[1745499185051,24.62,148.3,148.28,6.7421]
[1745499185358,24.62,148.3,148.26,6.64916402]
[1745499186259,24.62,148.3,148.28,6.7421]
[1745499187262,24.62,148.3,148.29,6.742]
[1745499187556,31.3616,148.3,148.26,6.64916402]
[1745499188054,24.62,148.3,148.26,6.64916402]
[1745499188258,24.62,148.3,148.27,5.0]
[1745499189463,24.62,148.3,148.28,6.7421]
[1745499189664,24.62,148.3,148.27,5.0]
[1745499190165,24.62,148.3,148.28,6.742]
[1745499190661,24.62,148.3,148.29,6.742]
[1745499191878,6.64916402,148.31,148.3,6.7416]
[1745499192075,24.58,148.31,148.28,6.64916402]
[1745499192370,24.58,148.34,148.28,6.64916402]
[1745499192570,24.58,148.34,148.3,11.64916402]
[1745499192965,24.58,148.34,148.33,6.7402]
[1745499193266,24.58,148.34,148.3,11.64916402]
[1745499193678,6.64916402,148.32,148.3,5.0]
[1745499193870,6.64916402,148.32,148.27,5.0]
[1745499194076,6.64916402,148.3,148.27,5.0]
[1745499194375,24.58,148.3,148.27,5.0]
[1745499194677,6.64916402,148.29,148.27,5.0]
[1745499194974,6.64916402,148.29,148.27,11.7427]
[1745499195371,6.64916402,148.29,148.27,5.0]
[1745499195872,13.39146402,148.29,148.27,5.0]
[1745499196175,6.64916402,148.29,148.27,5.0]
[1745499197076,6.64916402,148.29,148.27,11.7428]
[1745499197871,6.64916402,148.28,148.27,5.0]
[1745499198072,6.64916402,148.28,148.26,6.7431]
[1745499198275,6.64916402,148.27,148.26,6.7431]
[1745499199973,6.64916402,148.28,148.27,6.7428]
[1745499200677,31.22916402,148.3,148.29,6.742]
[1745499200873,31.22916402,148.3,148.26,5.0]
[1745499201678,37.97076402,148.3,148.27,6.7428]
[1745499201978,37.97076402,148.3,148.26,5.0]
[1745499202177,6.64916402,148.28,148.26,5.0]
[1745499202379,6.64916402,148.28,148.27,6.7428]
[1745499202679,6.64916402,148.28,148.26,5.0]
[1745499202874,6.64916402,148.27,148.23,5.0]
[1745499203079,6.64916402,148.27,148.25,6.7434]